bitfinex-derivatives/quotes_ETHF0:USTF0_20250416
["timestamp","ask_amount","ask_price","bid_price","bid_amount"]
[1744814917829,3.32146,1593.8,1593.7,3.19858313]
[1744814919828,5.32356,1593.8,1593.7,3.19858313]
[1744814920228,1.25519,1593.5,1593.4,5.29979938]
[1744814920428,6.70419,1593.5,1593.4,5.29979938]
[1744814920737,6.70419,1593.5,1593.4,0.00939938]
[1744814921532,5.449,1593.5,1593.4,4.47246938]
[1744814922128,1.25513,1593.6,1593.5,1.25519]
[1744814922533,6.70413,1593.6,1593.5,1.25519]
[1744814922837,1.25513,1593.6,1593.5,1.25519]
[1744814923033,1.25519,1593.5,1593.4,3.21719938]
[1744814923541,3.31359,1593.5,1593.4,3.21719938]
[1744814925240,6.70419,1593.5,1593.4,3.21719938]
[1744814925539,6.70419,1593.5,1593.4,4.47239938]
[1744814925837,6.70419,1593.5,1593.4,3.21719938]
[1744814926533,6.70419,1593.5,1593.4,0.00939938]
[1744814926935,8.78089,1593.5,1593.4,0.00939938]
[1744814929135,3.33189,1593.5,1593.4,0.00939938]
[1744814929333,1.25519,1593.5,1593.4,4.47246938]
[1744814929539,6.70519,1593.5,1593.4,4.47246938]
[1744814929745,6.70519,1593.5,1593.4,3.21719938]
[1744814929939,8.70769,1593.5,1593.4,3.21719938]
[1744814930137,5.936,1593.6,1593.5,1.25519]
[1744814930435,5.936,1593.6,1593.5,3.17879]
[1744814930636,5.936,1593.6,1593.5,10.13649]
[1744814931043,7.19112,1593.6,1593.5,5.13649]
[1744814931929,5.936,1593.6,1593.5,5.13649]
[1744814932135,7.19112,1593.6,1593.5,3.17879]
[1744814932369,1.25512,1593.6,1593.5,3.17879]
[1744814933842,1.25512,1593.6,1593.5,1.9236]
[1744814934037,1.25519,1593.5,1593.4,0.00939938]
[1744814934342,3.30189,1593.5,1593.4,0.00939938]
[1744814934540,8.30189,1593.5,1593.4,0.00939938]
[1744814935236,3.2078,1594.0,1593.7,1.25504]
[1744814935444,1.25485,1594.0,1593.8,3.2078]
[1744814935634,3.30148,1594.1,1593.8,3.2078]
[1744814935835,3.29226313,1594.1,1593.9,1.25485]
[1744814936035,3.29226313,1594.1,1594.0,2.0056]
[1744814936242,8.57926313,1594.1,1594.0,2.0056]
[1744814936741,1.25488,1593.9,1593.8,3.2078]
[1744814936930,1.25488,1593.9,1593.8,3.19858313]
[1744814937135,6.54188,1593.9,1593.8,3.19858313]
[1744814937843,1.25496,1593.8,1593.7,2.0372]
[1744814939543,3.31776,1593.8,1593.7,2.0372]
[1744814939746,1.25504,1593.7,1593.6,3.2078]
[1744814940245,1.25512,1593.6,1593.5,1.9029]
[1744814940448,6.54212,1593.6,1593.5,1.9029]
[1744814940836,5.287,1593.6,1593.5,3.15809]
[1744814941244,5.287,1593.6,1593.5,8.15809]
[1744814941446,5.287,1593.6,1593.5,1.9029]
[1744814941749,6.54212,1593.6,1593.5,1.9029]
[1744814941949,5.287,1593.6,1593.5,3.15809]
[1744814942250,5.287,1593.6,1593.5,1.9029]
[1744814942251,6.54212,1593.6,1593.5,1.9029]
[1744814942442,5.287,1593.6,1593.5,3.15809]
[1744814943347,6.54212,1593.6,1593.5,1.9029]
[1744814943850,1.25519,1593.5,1593.4,3.21719938]
[1744814944039,3.29209,1593.5,1593.4,3.21719938]
[1744814944549,1.25519,1593.5,1593.4,3.21719938]
[1744814944757,3.29209,1593.5,1593.4,3.21719938]
[1744814945650,1.25511,1593.7,1593.5,1.25519]
[1744814945948,6.54212,1593.6,1593.5,4.0877]
[1744814946249,2.0536,1594.0,1593.5,7.22554]
[1744814946544,1.25494,1593.9,1593.8,4.46275]
[1744814946747,0.00018251,1594.2,1594.0,1.2548]
[1744814946948,6.54156,1594.3,1594.2,0.00903436]
[1744814947151,6.54156,1594.3,1594.2,5.29283436]
[1744814947451,6.53252564,1594.3,1594.2,5.2838]
[1744814948039,6.53252564,1594.3,1594.2,2.076]
[1744814948439,8.45942564,1594.3,1594.2,2.076]
[1744814948853,1.25472,1594.1,1594.0,3.2078]
[1744814949052,1.25472,1594.1,1594.0,5.1214]
[1744814949253,3.13697,1594.1,1593.8,3.2078]
[1744814949455,1.25488,1593.9,1593.8,3.2078]
[1744814949651,1.25496,1593.8,1593.7,1.9136]
[1744814949840,3.29916,1593.8,1593.7,1.9136]
[1744814950957,1.25496,1593.8,1593.7,1.9136]
[1744814951449,1.25504,1593.7,1593.6,3.2078]
[1744814951643,6.54204,1593.7,1593.6,5.1214]
[1744814951846,1.25519,1593.5,1593.4,3.21719938]
[1744814952043,1.25519,1593.5,1593.4,5.15269938]
[1744814952649,1.25519,1593.5,1593.4,3.21719938]
[1744814954044,1.25519,1593.5,1593.4,0.00939938]
[1744814954555,3.25019,1593.5,1593.4,0.00939938]
[1744814959353,1.25551,1593.1,1593.0,3.2078]
[1744814959564,6.54251,1593.1,1593.0,3.2078]
[1744814960052,3.13898,1593.0,1592.6,3.2078]
[1744814960251,1.25582,1592.7,1592.6,5.25379938]
[1744814962456,6.54281,1592.8,1592.7,1.25582]
[1744814962656,1.25582,1592.7,1592.6,3.21719938]
[1744814963053,3.26272,1592.7,1592.6,0.00939938]
[1744814963262,1.25606,1592.4,1592.3,8.07131341]
[1744814963458,1.25614,1592.3,1592.2,1.9151]
[1744814963871,3.26304,1592.3,1592.2,1.9151]
[1744814964161,1.2563,1592.1,1592.0,5.2033]
[1744814964350,1.2563,1592.1,1592.0,5.2269]
[1744814964351,6.5443,1592.1,1592.0,5.2269]
[1744814964550,6.5443,1592.1,1592.0,2.0191]
[1744814964750,6.5443,1592.1,1592.0,5.2269]
[1744814966256,6.48509,1592.4,1592.2,1.25617]
[1744814966461,6.48506,1592.4,1592.3,5.2269]
[1744814966760,6.48506,1592.4,1592.3,2.0191]
[1744814967765,6.48506,1592.4,1592.3,5.2269]
[1744814968154,5.229,1592.4,1592.3,5.2269]
[1744814968465,6.48506,1592.4,1592.3,5.2269]
[1744814969264,6.48506,1592.4,1592.3,3.2078]
[1744814969462,1.25614,1592.3,1592.2,2.0703]
[1744814969854,3.28084,1592.3,1592.2,2.0703]
[1744814970065,6.48509,1592.4,1592.2,5.2781]
[1744814970366,1.25614,1592.3,1592.2,5.2781]
[1744814970565,3.33214,1592.3,1592.2,5.2781]
[1744814971465,5.229,1592.4,1592.2,5.2781]
[1744814971666,1.25614,1592.3,1592.2,5.2781]
[1744814971858,1.25614,1592.3,1592.2,6.53432]
[1744814972058,1.25614,1592.3,1592.2,5.2781]
[1744814972753,2.076,1592.3,1592.0,3.2078]
[1744814972958,1.2563,1592.1,1592.0,5.163]
[1744814973161,6.4863,1592.1,1592.0,1.9552]
[1744814974064,6.4863,1592.1,1592.0,5.163]
[1744814974773,1.25638,1592.0,1591.9,0.00939938]
[1744814974967,1.25638,1592.0,1591.9,1.94179938]
[1744814975464,3.33208,1592.0,1591.9,1.94179938]
[1744814975669,3.33208,1592.0,1591.9,0.00939938]
[1744814979065,1.25638,1592.0,1591.9,1.99369938]
[1744814979570,3.36168,1592.0,1591.9,1.99369938]
[1744814979769,3.36168,1592.0,1591.9,0.00939938]
[1744814981163,3.36168,1592.0,1591.9,2.11479938]
[1744814982475,1.25638,1592.0,1591.9,2.11479938]
[1744814983674,1.25638,1592.0,1591.9,0.00939938]
[1744814983872,3.16388,1592.0,1591.9,0.00939938]
[1744814984480,3.16388,1592.0,1591.9,2.04279938]
[1744814985073,1.25653,1591.8,1591.7,2.0855]
[1744814985279,6.48753,1591.8,1591.7,4.1735]
[1744814985472,8.54423,1591.8,1591.7,4.1735]
[1744814985886,8.54423,1591.8,1591.7,2.088]
[1744814986273,18.2237,1591.8,1591.4,3.2078]
[1744814986469,1.25677,1591.5,1591.4,3.2078]
[1744814986768,1.25693,1591.3,1591.2,5.2958]
[1744814986967,5.231,1591.5,1591.3,1.2569]
[1744814987174,1.25685,1591.4,1591.3,3.2078]
[1744814987374,1.25685,1591.4,1591.3,4.46473]
[1744814987576,1.25685,1591.4,1591.3,3.2078]
[1744814987976,3.31355,1591.4,1591.3,3.2078]
[1744814988474,1.25697,1591.3,1591.1,5.1162]
[1744814988676,7.1135,1591.5,1591.1,8.25889]
[1744814988879,6.48782,1591.5,1591.4,3.2078]
[1744814989077,5.231,1591.5,1591.4,4.46465]
[1744814989279,6.48777,1591.5,1591.4,3.2078]
[1744814991088,6.48777,1591.5,1591.2,5.2369]
[1744814991089,1.25693,1591.3,1591.2,5.2369]
[1744814991682,1.25693,1591.3,1591.2,6.49391]
[1744814992110,1.25692,1591.4,1591.3,1.25692]
[1744814992389,1.25692,1591.4,1591.2,5.2369]
[1744814992590,7.1869,1591.5,1591.2,5.2369]
[1744814992591,1.25693,1591.3,1591.2,5.2369]
[1744814993387,1.25693,1591.3,1591.2,3.2078]
[1744814994292,3.22953,1591.3,1591.2,3.2078]
[1744814994791,1.25701,1591.2,1591.1,1.9084]
[1744814995087,6.48901,1591.2,1591.1,1.9084]
[1744814995291,6.48901,1591.2,1591.0,3.2078]
[1744814995292,1.25709,1591.1,1591.0,3.2078]
[1744814995587,1.25739,1590.8,1590.5,0.51206934]
[1744814995780,3.22981,1591.0,1590.8,1.25731]
[1744814995980,6.49025,1590.9,1590.7,4.46514]
[1744814996181,1.25732,1590.8,1590.7,3.2078]
[1744814996381,1.25732,1590.8,1590.7,4.4652]
[1744814996682,1.25732,1590.8,1590.7,9.4652]
[1744814997492,1.25732,1590.8,1590.7,4.4652]
[1744814998490,5.233,1590.9,1590.8,1.25732]
[1744814998691,6.49025,1590.9,1590.8,1.25732]
[1744814999093,1.25732,1590.8,1590.7,4.46516]
[1744814999388,1.25732,1590.8,1590.7,3.2078]
[1744814999585,1.2574,1590.7,1590.6,1.25742]
[1744815000593,1.25736,1590.8,1590.7,1.25733]
[1744815000795,1.25736,1590.8,1590.7,4.46513]
[1744815001694,5.233,1590.9,1590.7,3.74106988]
[1744815001893,6.4903,1590.9,1590.8,1.25732]
[1744815002299,1.25732,1590.8,1590.7,4.46518]
[1744815002521,1.25732,1590.8,1590.7,1.25738]
[1744815002698,1.25732,1590.8,1590.7,4.46518]
[1744815002995,6.4903,1590.9,1590.8,1.25732]
[1744815003604,1.25732,1590.8,1590.7,4.46514]
[1744815004188,6.49029,1590.9,1590.8,1.25732]
[1744815004389,1.25732,1590.8,1590.7,3.2078]
[1744815004589,1.25748,1590.6,1590.5,6.52538]
[1744815004788,1.9725,1590.8,1590.5,5.2679]
[1744815004998,1.25746,1590.7,1590.6,1.25746]
[1744815005398,1.25764,1590.4,1590.2,2.0796]
[1744815005694,5.215,1590.4,1590.2,2.0796]
[1744815005998,4.0313,1590.6,1590.4,1.25764]
[1744815005999,5.215,1590.5,1590.4,1.25764]
[1744815006194,6.47256,1590.5,1590.4,1.9401]
[1744815006392,5.215,1590.5,1590.4,3.19774]
[1744815007303,5.215,1590.7,1590.5,1.25756]
[1744815007602,6.4724,1590.7,1590.6,3.26638]
[1744815007804,5.215,1590.7,1590.6,3.26638]
[1744815008195,5.215,1590.7,1590.6,5.27068]
[1744815008400,1.2573,1590.9,1590.6,7.15688]
[1744815008697,6.47324,1591.0,1590.9,1.25725]
[1744815008994,5.216,1591.0,1590.9,4.46505]
[1744815009192,1.25715,1591.1,1591.0,1.25717]
[1744815009393,1.25715,1591.1,1591.0,3.26607]
[1744815009587,1.25709,1591.1,1591.0,3.26603]
[1744815010005,8.44246938,1591.2,1591.1,1.25709]
[1744815010303,8.44246938,1591.2,1591.1,1.9564]
[1744815010498,6.48246938,1591.2,1591.1,3.21349]
[1744815010800,5.22539938,1591.2,1591.1,6.42129]
[1744815010999,6.48240938,1591.2,1591.1,6.42129]
[1744815011600,5.22539938,1591.2,1591.1,6.42129]
[1744815011893,6.48240938,1591.2,1591.1,6.42129]
[1744815012305,5.22539938,1591.2,1591.1,6.42129]
[1744815012498,0.00939938,1591.2,1591.1,6.42129]
[1744815012703,5.216,1591.4,1591.3,1.25693]
[1744815013004,1.25685,1591.4,1591.3,4.46464]
[1744815013196,1.25676,1591.6,1591.5,1.25674]
[1744815013396,7.1117,1591.7,1591.4,1.9311]
[1744815013397,1.25677,1591.5,1591.4,1.9311]
[1744815013596,1.25676,1591.6,1591.5,1.25673]
[1744815013798,8.37779951,1591.7,1591.6,1.25669]
[1744815013998,1.25677,1591.5,1591.4,1.26621951]
[1744815014300,10.26266951,1591.7,1591.5,1.25676]
[1744815014301,1.25676,1591.6,1591.5,1.25676]
[1744815014499,1.25673,1591.6,1591.5,1.25672]
[1744815014905,7.12112951,1591.7,1591.4,0.00942951]
[1744815015102,1.25673,1591.6,1591.5,1.25673]
[1744815015602,6.48209951,1591.7,1591.6,1.25669]
[1744815015803,5.22542951,1591.7,1591.6,1.25669]
[1744815016903,0.00942951,1591.7,1591.6,1.25669]
[1744815017798,0.00942951,1591.7,1591.6,6.25669]
[1744815018004,0.00942951,1591.7,1591.6,1.25669]
[1744815018201,1.26603951,1591.7,1591.6,1.25669]
[1744815018602,0.00942951,1591.7,1591.6,1.25669]
[1744815019925,6.47133,1592.1,1592.0,1.25638]
[1744815020125,1.25641,1592.0,1591.9,1.25638]
[1744815020622,5.215,1592.1,1591.8,3.2078]
[1744815020623,1.25638,1592.1,1592.0,1.25635]
[1744815020918,1.25641,1592.0,1591.9,1.25639]
[1744815021224,1.25637,1592.1,1592.0,1.25634]
[1744815021723,1.25638,1592.0,1591.9,42.05639]
[1744815022022,1.25638,1592.0,1591.9,1.25639]
[1744815022221,2.0351,1592.1,1592.0,1.25638]
[1744815022419,2.0351,1592.1,1592.0,4.46418]
[1744815022626,1.26564951,1592.2,1592.1,1.2563]
[1744815022811,0.00942951,1592.2,1592.1,1.2563]
[1744815023017,1.26564951,1592.2,1592.1,1.2563]
[1744815023814,0.00942951,1592.2,1592.1,1.2563]
[1744815024126,0.00942951,1592.2,1592.1,3.2614]
[1744815024320,0.00942951,1592.2,1592.0,3.2078]
[1744815024321,1.2563,1592.1,1592.0,3.2078]
[1744815024523,1.25646,1591.9,1591.8,40.8]
[1744815024722,3.14117,1591.9,1591.6,1.25665]
[1744815024926,1.25662,1591.7,1591.5,5.2129]
[1744815025220,5.214,1592.1,1591.9,1.25643]
[1744815025425,2.0112,1592.0,1591.9,1.25638]
[1744815025625,1.25646,1591.9,1591.8,1.25648]
[1744815025821,1.25653,1591.8,1591.7,4.46435]
[1744815026023,3.26772,1591.9,1591.8,1.25653]
[1744815027133,1.25653,1591.8,1591.7,6.44249]
[1744815027925,1.25653,1591.8,1591.7,6.44251]
[1744815028323,1.25653,1591.8,1591.7,5.1859]
[1744815028629,1.25653,1591.8,1591.7,6.44251]
[1744815029330,1.25653,1591.8,1591.7,5.1859]
[1744815029528,1.25653,1591.8,1591.7,6.44251]
[1744815029726,1.25653,1591.8,1591.7,5.1859]
[1744815030230,1.25669,1591.6,1591.5,3.2078]
[1744815030428,1.25677,1591.5,1591.4,1.93142951]
[1744815030618,3.20767,1591.5,1591.4,1.93142951]
[1744815031436,3.20767,1591.5,1591.4,0.00942951]
[1744815033223,8.20767,1591.5,1591.4,0.00942951]
[1744815033530,3.20767,1591.5,1591.4,0.00942951]
[1744815042726,3.14215,1591.4,1590.9,4.465]
[1744815043030,3.14215,1591.4,1590.9,6.34585]
[1744815043031,1.25717,1591.0,1590.9,6.34585]
[1744815043229,1.25717,1591.0,1590.9,4.46505]
[1744815043457,1.25717,1591.0,1590.9,3.2078]
[1744815043832,1.25725,1590.9,1590.8,1.89042951]
[1744815044032,3.32955,1590.9,1590.8,1.89042951]
[1744815044431,3.32955,1590.9,1590.8,0.00942951]
[1744815044631,5.30035,1590.9,1590.8,0.00942951]
[1744815045528,1.25725,1590.9,1590.8,4.47454951]
[1744815045835,4.47435951,1591.1,1591.0,1.25717]
[1744815046033,0.00942951,1591.1,1591.0,4.46497]
[1744815046428,0.00942951,1591.1,1591.0,11.35327]
[1744815047636,1.26651951,1591.1,1591.0,5.0961]
[1744815047829,1.26651951,1591.1,1591.0,1.8883]
[1744815048539,1.25725,1590.9,1590.8,0.00942951]
[1744815048836,6.46925,1590.9,1590.8,0.00942951]
[1744815049230,8.49165,1590.9,1590.8,0.00942951]
[1744815050838,6.46925,1590.9,1590.8,0.00942951]
[1744815051532,6.46925,1590.9,1590.8,3.21722951]
[1744815051730,5.212,1590.9,1590.8,4.47454951]
[1744815052132,6.46925,1590.9,1590.8,4.47454951]
[1744815053034,6.46925,1590.9,1590.8,9.47454951]
[1744815053239,1.25722,1591.0,1590.9,1.25725]
[1744815053541,1.25722,1591.0,1590.9,5.34315]
[1744815053741,1.26658951,1591.1,1591.0,1.25717]
[1744815053926,3.14201,1591.5,1591.2,1.25693]
[1744815054236,1.25685,1591.4,1591.3,5.3361]
[1744815054428,1.25685,1591.4,1591.3,6.59303]
[1744815054629,1.25685,1591.4,1591.3,5.3361]
[1744815055138,1.25685,1591.4,1591.3,2.1283]
[1744815055340,1.25701,1591.2,1591.1,45.26484]
[1744815055936,1.25692,1591.4,1591.3,1.2569]
[1744815056129,1.25692,1591.4,1591.3,4.4647]
[1744815057441,1.25692,1591.4,1591.3,3.2078]
[1744815057840,1.25692,1591.4,1591.3,5.2648]
[1744815058037,1.25692,1591.4,1591.3,2.057]
[1744815058437,1.25693,1591.3,1591.2,2.077]
[1744815058642,3.22083,1591.3,1591.2,2.077]
[1744815058945,3.22083,1591.3,1591.2,4.1144]
[1744815059742,3.22083,1591.3,1591.2,2.0374]
[1744815061046,1.25709,1591.1,1591.0,2.0662]
[1744815061544,3.22097,1591.2,1591.0,2.0662]
[1744815061747,3.22097,1591.2,1591.1,1.25709]
[1744815061945,3.22097,1591.2,1591.0,3.3233]
[1744815062137,1.25707,1591.2,1591.1,1.25709]
[1744815062444,1.25707,1591.2,1591.1,2.0485]
[1744815062834,1.25707,1591.2,1591.1,3.30559]
[1744815063037,1.25707,1591.2,1591.1,2.0485]
[1744815063636,8.46228,1591.3,1591.1,5.2563]
[1744815063842,6.46398,1591.3,1591.2,1.25701]
[1744815064040,6.46398,1591.3,1591.2,2.0485]
[1744815064442,6.46398,1591.3,1591.2,3.30551]
[1744815064740,6.46398,1591.3,1591.2,2.0485]
[1744815064954,6.46398,1591.3,1591.2,3.30551]
[1744815065142,6.46398,1591.3,1591.2,2.0485]
[1744815067251,8.41978,1591.3,1591.2,2.0485]
[1744815068564,5.207,1591.3,1591.2,3.30551]
[1744815068751,1.25689,1591.4,1591.3,1.25693]
[1744815069056,1.25689,1591.4,1591.3,7.3025]
[1744815069247,1.25689,1591.4,1591.3,2.1278]
[1744815069453,3.37769,1591.4,1591.3,2.1278]
[1744815069842,1.25701,1591.2,1591.1,3.2078]
[1744815070057,1.25701,1591.2,1591.1,5.3356]
[1744815070253,3.37781,1591.2,1591.1,2.1278]
[1744815071443,1.25709,1591.1,1591.0,4.0536]
[1744815071649,3.20809,1591.1,1591.0,4.0536]
[1744815072359,3.20809,1591.1,1591.0,5.31077]
[1744815072856,1.25709,1591.1,1591.0,5.31077]
[1744815073756,1.25709,1591.1,1591.0,4.0536]
[1744815074158,1.25709,1591.1,1591.0,5.31077]
[1744815074758,1.25709,1591.1,1591.0,4.0536]
[1744815075355,1.25704,1591.2,1591.1,1.25709]
[1744815075658,5.207,1591.3,1591.2,1.25701]
[1744815076156,5.207,1591.3,1591.2,3.23891]
[1744815076560,6.46393,1591.3,1591.2,1.9819]
[1744815076853,16.55715,1591.3,1590.8,0.00942951]
[1744815077046,1.25748,1590.6,1590.5,6.21570341]
[1744815077279,1.25756,1590.5,1590.4,12.10697012]
[1744815077452,5.27766,1590.5,1590.4,12.10697012]
[1744815077647,8.48546,1590.5,1590.4,12.10697012]
[1744815077859,5.27766,1590.5,1590.4,12.10697012]
[1744815079661,1.25764,1590.4,1590.3,0.00942951]
[1744815079853,3.19444,1590.4,1590.3,0.00942951]
[1744815081957,3.19444,1590.4,1590.3,0.00942951]
[1744815084370,1.25812,1589.8,1589.7,3.2078]
[1744815085262,6.35292,1589.9,1589.5,4.0723]
[1744815085461,1.25827,1589.6,1589.5,7.2801]
[1744815085654,1.25827,1589.6,1589.5,4.0723]
[1744815085857,1.25827,1589.6,1589.5,53.0801]
[1744815086263,1.25827,1589.6,1589.5,49.8723]
[1744815086468,1.25827,1589.6,1589.5,44.8723]
[1744815086965,1.25827,1589.6,1589.5,1.9796]
[1744815087167,3.14605,1589.5,1589.1,3.2078]
[1744815087366,1.25856,1589.3,1589.2,2.0981]
[1744815088967,1.25848,1589.4,1589.2,2.0981]
[1744815089270,1.25841,1589.5,1589.3,4.46631]
[1744815089570,1.25843,1589.4,1589.3,4.46631]
[1744815089771,1.25843,1589.4,1589.3,3.2078]
[1744815089964,1.25841,1589.5,1589.4,1.25843]
[1744815090164,1.25843,1589.4,1589.3,3.2078]
[1744815090364,1.25843,1589.4,1589.3,4.46631]
[1744815090563,1.25843,1589.4,1589.3,9.46631]
[1744815090767,1.25843,1589.4,1589.3,9.46625]
[1744815091570,1.25843,1589.4,1589.3,8.2078]
[1744815091772,1.25843,1589.4,1589.3,9.46631]
[1744815093272,0.00942951,1589.7,1589.4,3.14609]
[1744815093472,1.25808,1589.9,1589.6,4.46607]
[1744815093662,1.25808,1589.9,1589.8,3.2078]
[1744815093862,1.25812,1589.8,1589.7,6.46216]
[1744815094269,5.12238,1590.1,1589.7,6.46218]
[1744815094465,1.2581,1589.9,1589.7,6.46218]
[1744815094669,1.25807,1589.9,1589.8,1.2581]
[1744815094966,1.25812,1589.8,1589.7,1.26758951]
[1744815095171,1.25812,1589.8,1589.7,0.00942951]
[1744815096273,3.24892,1589.8,1589.7,0.00942951]
[1744815096472,5.29612,1589.8,1589.7,0.00942951]
[1744815096972,10.29612,1589.8,1589.7,0.00942951]
[1744815097474,12.30262,1589.8,1589.7,0.00942951]
[1744815097673,1.25843,1589.4,1589.3,4.109]
[1744815098066,2.0402,1589.5,1589.3,4.109]
[1744815098266,2.0402,1589.5,1589.4,1.9266]
[1744815098475,3.29859,1589.5,1589.4,1.9266]
[1744815098874,3.29859,1589.5,1589.4,3.18503]
[1744815099075,3.29859,1589.5,1589.4,1.9266]
[1744815100871,3.29859,1589.5,1589.4,3.18503]
[1744815101369,3.29859,1589.5,1589.4,1.9266]
[1744815101572,3.29859,1589.5,1589.4,3.18503]
[1744815101773,1.25833,1589.6,1589.5,1.25835]
[1744815102073,1.25833,1589.6,1589.5,2.055]
[1744815102271,1.25833,1589.6,1589.5,3.31335]
[1744815102474,1.25833,1589.6,1589.5,2.055]
[1744815105377,1.25843,1589.4,1589.3,4.053]
[1744815105871,3.32823,1589.4,1589.3,4.053]
[1744815106479,1.2584,1589.5,1589.4,1.25841]
[1744815106780,1.25835,1589.5,1589.4,2.0096]
[1744815107574,1.25835,1589.5,1589.4,5.2174]
[1744815107775,1.25835,1589.5,1589.4,6.47583]
[1744815107969,1.25835,1589.5,1589.4,5.2174]
[1744815108572,5.0,1589.5,1589.2,3.2078]
[1744815108878,1.25878,1589.0,1588.8,1.25891]
[1744815109083,1.25875,1589.0,1588.9,5.20643]
[1744815109275,1.26812951,1589.1,1588.9,3.9476]
[1744815109578,1.26812951,1589.1,1589.0,2.0283]
[1744815109974,1.25876,1589.0,1588.9,3.2078]
[1744815110174,0.00942951,1589.1,1589.0,1.25875]
[1744815110377,1.26809951,1589.1,1589.0,3.18875]
[1744815110678,0.00942951,1589.1,1589.0,3.18875]
[1744815110883,0.00942951,1589.1,1589.0,8.18875]
[1744815111074,1.26809951,1589.1,1589.0,8.18875]
[1744815111275,0.00942951,1589.1,1589.0,8.18875]
[1744815111480,1.26809951,1589.1,1589.0,8.69333038]
[1744815111876,1.26809951,1589.1,1589.0,8.69333487]
[1744815112084,0.00942951,1589.1,1589.0,8.69333487]
[1744815112284,1.25841,1589.5,1589.4,1.2584]
[1744815112485,1.25831,1589.6,1589.5,1.2583]
[1744815112680,1.25827,1589.7,1589.6,1.25824]
[1744815112883,1.25827,1589.7,1589.6,3.26584]
[1744815113181,1.25827,1589.7,1589.6,5.17924]
[1744815113375,1.25827,1589.7,1589.6,5.68367314]
[1744815113581,1.25827,1589.7,1589.6,3.921]
[1744815113877,1.25827,1589.7,1589.6,1.9134]
[1744815114277,3.33807,1589.7,1589.6,1.9134]
[1744815115681,1.25827,1589.7,1589.6,3.17167]
[1744815115882,1.26760951,1589.8,1589.7,1.25819]
[1744815116071,1.26760951,1589.8,1589.7,1.8915]
[1744815116279,1.26760951,1589.8,1589.7,3.14969]
[1744815116782,1.26760951,1589.8,1589.7,1.8915]
[1744815117085,1.26760951,1589.8,1589.7,3.14969]
[1744815117483,1.26760951,1589.8,1589.7,1.8915]
[1744815117982,1.25827,1589.6,1589.5,3.21529]
[1744815118177,1.25825,1589.7,1589.6,1.25825]
[1744815118394,1.25825,1589.7,1589.6,3.14975]
[1744815118583,3.14549,1589.7,1589.3,3.2078]
[1744815118883,3.14549,1589.7,1589.4,3.65468689]
[1744815118884,1.9783,1589.6,1589.4,3.65468689]
[1744815119186,3.23663,1589.6,1589.5,1.25835]
[1744815119686,1.25839,1589.5,1589.4,1.25836]
[1744815119887,3.23664,1589.6,1589.5,1.25835]
[1744815121382,1.26761951,1589.8,1589.7,1.25819]
[1744815121582,3.26491951,1589.8,1589.7,1.25819]
[1744815121788,3.21761,1590.1,1590.0,1.25796]
[1744815121992,3.22466,1590.2,1590.1,1.25788]
[1744815122475,1.25792,1590.1,1590.0,1.25788]
[1744815122674,3.22466,1590.2,1590.1,1.25788]
[1744815122878,1.9668,1590.2,1590.1,1.25788]
[1744815123079,5.20742951,1590.3,1590.2,1.2578]
[1744815123275,0.00942951,1590.3,1590.2,1.2578]
[1744815123688,11.54878,1591.0,1590.3,3.14415]
[1744815123886,3.22419,1590.8,1590.7,1.2574]
[1744815124087,1.25747,1590.7,1590.6,1.25747]
[1744815124389,1.25747,1590.7,1590.6,40.8]
[1744815124887,6.44140951,1590.8,1590.7,1.2574]
[1744815125074,1.2574,1590.7,1590.6,40.8]
[1744815125278,3.3334,1590.7,1590.6,40.8]
[1744815125782,2.076,1590.7,1590.6,42.05743]
[1744815125987,3.3334,1590.7,1590.6,40.8]
[1744815126287,2.076,1590.7,1590.6,42.05748]
[1744815126587,3.3334,1590.7,1590.6,42.05748]
[1744815127085,8.42733,1590.7,1590.4,3.9622]
[1744815127385,1.25777,1590.3,1590.0,0.00942951]
[1744815127581,1.25777,1590.3,1590.2,1.2578]
[1744815127782,1.25777,1590.3,1590.1,42.05782]
[1744815128188,1.2578,1590.2,1590.1,42.05782]
[1744815128491,1.25785,1590.2,1590.1,1.25787]
[1744815128683,4.46558,1590.3,1590.2,1.2578]
[1744815128890,1.2578,1590.2,1590.1,1.25781]
[1744815129187,3.3189,1590.2,1590.1,1.25781]
[1744815130088,5.196,1590.4,1590.0,2.00532951]
[1744815130291,5.196,1590.4,1590.3,1.25772]
[1744815130491,2.0611,1590.5,1590.4,1.25764]
[1744815130694,3.31866,1590.5,1590.4,1.25764]
[1744815131190,1.25756,1590.5,1590.4,1.25764]
[1744815131392,2.0099,1590.6,1590.5,1.25756]
[1744815131393,1.25752,1590.6,1590.5,1.25756]
[1744815131980,5.196,1590.7,1590.4,5.06159]
[1744815132186,1.25756,1590.5,1590.4,3.17509]
[1744815132390,2.02e-06,1592.0,1591.9,4.46426]
[1744815132582,17.59574363,1592.3,1591.9,3.2078]
[1744815132787,5.465,1593.0,1592.3,3.14036]
[1744815132986,11.75138859,1593.0,1592.6,3.2078]
[1744815133291,6.28638859,1592.9,1592.6,1.26527951]
[1744815133482,6.28638859,1592.9,1592.6,1.26529951]
[1744815133687,6.28638859,1592.8,1592.6,0.00942951]
[1744815133888,6.28638859,1592.8,1592.6,1.26531951]
[1744815134089,6.28638859,1592.7,1592.6,1.26531951]
[1744815134296,6.28638859,1592.9,1592.7,1.25581]
[1744815134596,5.463,1592.8,1592.6,1.26527951]
[1744815134890,3.2078,1592.7,1592.6,0.00942951]
[1744815135090,14.95718859,1592.7,1592.6,0.00942951]
[1744815135292,19.95718859,1592.7,1592.6,0.00942951]